fUST/lending_fUST_20251008
["ID","MTS","AMOUNT","RATE_DAILY","PERIOD"]
[389865994,1759878638633,-300.0,0.00017938,2]
[389865996,1759878638643,-300.0,0.00017938,2]
[389865998,1759878638652,-300.0,0.00017938,2]
[389866000,1759878638662,-300.0,0.00017938,2]
[389866002,1759878638672,-600.0,0.00017938,2]
[389866003,1759878638682,-34976.78515325,0.0001799,2]
[389866004,1759878638692,-1000.00000002,0.00018,2]
[389866005,1759878638702,-500.0,0.00018,2]
[389866006,1759878638712,-151.0,0.00018,2]
[389866007,1759878638722,-500.0,0.00018,2]
[389866008,1759878638732,-189.75049673,0.00018,2]
[389866010,1759878638742,-151.0,0.00018,2]
[389866011,1759878638752,-151.0,0.00018,2]
[389866012,1759878638761,-244.74999984,0.00018,2]
[389866013,1759878638771,-151.0,0.00018,2]
[389866014,1759878638781,-500.0,0.00018,2]
[389866015,1759878638791,-500.0,0.00018,2]
[389866016,1759878638801,-500.0,0.00018,2]
[389866018,1759878638811,-500.0,0.00018,2]
[389866020,1759878638821,-151.0,0.00018,2]
[389866022,1759878638832,-151.0,0.00018,2]
[389866024,1759878638842,-151.0,0.00018083,2]
[389866026,1759878638851,-151.0,0.00018083,2]
[389866027,1759878638861,-151.0,0.00018083,2]
[389866029,1759878638872,-151.0,0.00018083,2]
[389866031,1759878638881,-151.0,0.00018083,2]
[389866033,1759878638891,-151.0,0.00018083,2]
[389866035,1759878638900,-151.0,0.00018083,2]
[389866037,1759878638910,-151.0,0.00018083,2]
[389866039,1759878638920,-151.0,0.00018083,2]
[389866041,1759878638930,-151.0,0.00018083,2]
[389866043,1759878638939,-151.0,0.00018083,2]
[389866044,1759878638948,-151.15484948,0.00018083,2]
[389866046,1759878638958,-271.84500807,0.00018083,2]
[389866047,1759878638968,-151.0,0.00018083,2]
[389866048,1759878638977,-151.0,0.00018083,2]
[389866049,1759878638987,-151.0,0.00018083,2]
[389866050,1759878638997,-807.0,0.00018083,2]
[389866051,1759878639007,-500.0,0.00018083,2]
[389866052,1759878639018,-151.0,0.00018083,2]
[389866053,1759878639027,-500.0,0.00018083,2]
[389866054,1759878639037,-151.0,0.00018083,2]
[389866055,1759878639046,-151.0,0.00018083,2]
[389866056,1759878639056,-151.0,0.00018083,2]
[389866057,1759878639066,-151.0,0.00018083,2]
[389866058,1759878639076,-151.0,0.00018083,2]
[389866059,1759878639086,-151.0,0.00018083,2]
[389866060,1759878639096,-151.0,0.000181,2]
[389866061,1759878639106,-1680.37356172,0.00018231,2]
[389866062,1759878639122,-500.0,0.00018274,2]
[389866063,1759878639133,-151.0,0.00018274,2]
[389866064,1759878639143,-500.0,0.00018274,2]
[389866065,1759878639153,-151.0,0.00018274,2]
[389866067,1759878639164,-500.0,0.00018274,2]
[389866068,1759878639173,-500.0,0.00018274,2]
[389866070,1759878639182,-500.0,0.00018274,2]
[389866072,1759878639192,-151.0,0.00018274,2]
[389866074,1759878639201,-151.0,0.00018274,2]
[389866076,1759878639212,-151.0,0.00018357,2]
[389866078,1759878639222,-151.0,0.00018357,2]
[389866080,1759878639232,-151.0,0.00018357,2]
[389866082,1759878639241,-151.0,0.00018357,2]
[389866084,1759878639250,-151.0,0.00018357,2]
[389866086,1759878639259,-198.29765707,0.00018357,2]
[389866088,1759878639269,-168.99728248,0.00018357,2]
[389866090,1759878639278,-151.0,0.00018357,2]
[389866092,1759878639288,-151.0,0.00018357,2]
[389866094,1759878639297,-151.0,0.00018357,2]
[389866096,1759878639307,-151.0,0.00018357,2]
[389866098,1759878639317,-151.0,0.00018357,2]
[389866100,1759878639328,-807.0,0.00018357,2]
[389866102,1759878639337,-500.0,0.00018357,2]
[389866104,1759878639346,-157.49425463,0.00018357,2]
[389866106,1759878639356,-500.0,0.00018357,2]
[389866108,1759878639365,-151.0,0.00018357,2]
[389866110,1759878639374,-151.0,0.00018357,2]
[389866112,1759878639383,-195.0,0.00018484,2]
[389866114,1759878639393,-500.0,0.00018548,2]
[389866116,1759878639402,-500.0,0.00018548,2]
[389866118,1759878639412,-151.0,0.00018624,2]
[389866120,1759878639421,-198.0,0.00018631,2]
[389866122,1759878639430,-151.0,0.00018631,2]
[389866124,1759878639440,-151.0,0.00018631,2]
[389866126,1759878639449,-198.0,0.00018631,2]
[389866128,1759878639458,-151.0,0.00018631,2]
[389866130,1759878639467,-198.0,0.00018631,2]
[389866132,1759878639476,-151.0,0.00018631,2]
[389866134,1759878639486,-151.0,0.00018631,2]
[389866136,1759878639495,-807.0,0.00018631,2]
[389866138,1759878639504,-500.0,0.00018631,2]
[389866139,1759878639513,-500.0,0.00018631,2]
[389866141,1759878639523,-198.0,0.00018631,2]
[389866143,1759878639532,-167.31,0.00018722,2]
[389866145,1759878639542,-484.97126142,0.00018727,2]
[389866147,1759878639551,-500.0,0.00018746,2]
[389866149,1759878639561,-500.0,0.0001876,2]
[389866151,1759878639570,-500.0,0.00018766,2]
[389866153,1759878639581,-500.0,0.00018766,2]
[389866155,1759878639590,-500.0,0.00018766,2]
[389866157,1759878639600,-500.0,0.00018766,2]
[389866159,1759878639611,-496.81870126,0.00018822,2]
[389866161,1759878639621,-500.0,0.00018829,2]
[389866163,1759878639631,-500.0,0.00018829,2]
[389866165,1759878639640,-500.0,0.00018829,2]
[389866167,1759878639651,-500.0,0.00018829,2]
[389866169,1759878639660,-500.0,0.00018829,2]
[389866171,1759878639669,-500.0,0.00018839,2]
[389866173,1759878639679,-500.0,0.00018839,2]
[389866175,1759878639689,-1680.0,0.00018874,2]
[389866177,1759878639702,-420.0,0.00018874,2]
[389866179,1759878639711,-500.0,0.00018878,2]
[389866181,1759878639720,-500.0,0.00018878,2]
[389866183,1759878639729,-500.0,0.00018878,2]
[389866185,1759878639738,-500.0,0.00018888,2]
[389866187,1759878639748,-257.44575561,0.00018897,2]
[389866189,1759878639757,-500.0,0.00018897,2]
[389866191,1759878639767,-500.0,0.00018897,2]
[389866193,1759878639776,-246.48150504,0.00018897,2]
[389866195,1759878639786,-500.0,0.00018897,2]
[389866197,1759878639795,-151.0,0.00018905,2]
[389866199,1759878639805,-151.0,0.00018905,2]
[389866201,1759878639815,-198.0,0.00018905,2]
[389866203,1759878639826,-198.0,0.00018905,2]
[389866205,1759878639835,-198.0,0.00018905,2]
[389866207,1759878639845,-807.0,0.00018905,2]
[389866209,1759878639855,-500.0,0.00018905,2]
[389866211,1759878639864,-500.0,0.00018937,2]
[389866213,1759878639873,-160.0,0.00018955,2]
[389866215,1759878639884,-1680.0,0.00018967,2]
[389866217,1759878639893,-217.5,0.00019084,2]
[389866219,1759878639902,-292.0,0.00019179,2]
[389866221,1759878639912,-292.0,0.00019179,2]
[389866223,1759878639922,-807.0,0.00019179,2]
[389866225,1759878639931,-500.0,0.00019179,2]
[389866227,1759878639940,-1680.37356172,0.00019262,2]
[389866229,1759878639949,-1000.0,0.00019294,2]
[389866231,1759878639959,-500.0,0.00019308,2]
[389866233,1759878639968,-1000.0,0.00019314,2]
[389866235,1759878639977,-1000.0,0.00019314,2]
[389866237,1759878639987,-1000.0,0.00019314,2]
[389866239,1759878639996,-1000.0,0.00019314,2]
[389866241,1759878640005,-560.37107373,0.00019377,2]
[389866243,1759878640014,-1000.0,0.00019377,2]
[389866245,1759878640023,-1000.0,0.00019377,2]
[389866247,1759878640033,-1000.0,0.00019377,2]
[389866248,1759878640042,-1000.0,0.00019377,2]
[389866250,1759878640051,-1000.0,0.00019387,2]
[389866251,1759878640060,-1000.0,0.00019387,2]
[389866252,1759878640069,-151.0,0.000194,2]
[389866254,1759878640080,-1000.0,0.00019426,2]
[389866256,1759878640090,-1000.0,0.00019426,2]
[389866258,1759878640099,-1000.0,0.00019436,2]
[389866260,1759878640109,-151.0,0.00019436,7]
[389866262,1759878640122,-151.0,0.00019436,7]
[389866264,1759878640132,-151.0,0.00019436,7]
[389866266,1759878640141,-151.0,0.00019436,7]
[389866268,1759878640150,-500.0,0.00019445,2]
[389866269,1759878640162,-1000.0,0.00019445,2]
[389866271,1759878640171,-996.5300356,0.00019445,2]
[389866273,1759878640180,-151.0,0.00019445,7]
[389866275,1759878640190,-151.0,0.00019445,7]
[389866277,1759878640200,-204.182645,0.00019445,7]
[389866279,1759878640209,-151.0,0.00019445,7]
[389866281,1759878640219,-204.182645,0.00019445,7]
[389866283,1759878640228,-204.182645,0.00019445,7]
[389866285,1759878640238,-204.182645,0.00019445,7]
[389866288,1759878640247,-151.0,0.00019445,7]
[389866291,1759878640257,-151.0,0.00019445,7]
[389866294,1759878640266,-151.0,0.00019445,7]
[389866297,1759878640276,-151.0,0.00019445,7]
[389866300,1759878640285,-151.0,0.00019445,7]
[389866303,1759878640294,-151.0,0.00019445,7]
[389866306,1759878640303,-151.0,0.00019445,7]
[389866309,1759878640312,-151.0,0.00019445,7]
[389866312,1759878640322,-151.0,0.00019445,7]
[389866315,1759878640332,-151.0,0.00019445,7]
[389866318,1759878640341,-151.0,0.00019445,7]
[389866320,1759878640350,-151.0,0.00019445,7]
[389866322,1759878640359,-247.852894,0.00019445,7]
[389866324,1759878640368,-151.0,0.00019445,7]
[389866326,1759878640377,-151.0,0.00019445,7]
[389866328,1759878640387,-268.928441,0.00019445,7]
[389866330,1759878640396,-151.0,0.00019445,7]
[389866332,1759878640405,-807.0,0.00019453,2]
[389866333,1759878640414,-500.0,0.00019453,2]
[389866335,1759878640424,-151.0,0.00019467,7]
[389866337,1759878640433,-151.0,0.00019467,7]
[389866340,1759878640443,-229.782625,0.00019467,7]
[389866342,1759878640453,-229.782625,0.00019467,7]
[389866343,1759878640463,-229.782625,0.00019467,7]
[389866345,1759878640472,-229.782625,0.00019467,7]
[389866347,1759878640482,-151.0,0.00019467,7]
[389866349,1759878640491,-151.0,0.00019467,7]
[389866351,1759878640500,-151.0,0.00019467,7]
[389866353,1759878640510,-151.0,0.00019467,7]
[389866355,1759878640519,-197.452558,0.00019467,7]
[389866357,1759878640528,-151.0,0.00019467,7]
[389866359,1759878640537,-162.769404,0.00019467,7]
[389866361,1759878640547,-2969.942289,0.00019467,7]
[389866363,1759878640556,-2969.942289,0.00019467,7]
[389866365,1759878640565,-2969.942289,0.00019467,7]
[389866367,1759878640575,-2969.942289,0.00019467,7]
[389866369,1759878640585,-151.0,0.00019467,7]
[389866371,1759878640594,-151.0,0.00019467,7]
[389866373,1759878640603,-1000.0,0.00019485,2]
[389866375,1759878640613,-151.0,0.00019485,7]
[389866377,1759878640622,-151.0,0.00019485,7]
[389866379,1759878640632,-151.338804,0.00019485,7]
[389866381,1759878640641,-151.0,0.00019485,7]
[389866383,1759878640651,-151.0,0.00019485,7]
[389866385,1759878640660,-151.0,0.00019485,7]
[389866387,1759878640669,-151.0,0.00019485,7]
[389866389,1759878640678,-151.0,0.00019485,7]
[389866391,1759878640689,-533.72506543,0.00019485,7]
[389866393,1759878640698,-151.0,0.00019485,7]
[389866395,1759878640707,-151.0,0.00019485,7]
[389866397,1759878640717,-257.914299,0.00019485,7]
[389866399,1759878640726,-260.0,0.00019502,2]
[389866401,1759878640735,-151.0,0.00019662,7]
[389866403,1759878640744,-151.0,0.00019662,7]
[389866405,1759878640754,-151.0,0.00019662,7]
[389866407,1759878640763,-151.0,0.00019662,7]
[389866409,1759878640772,-151.0,0.00019662,7]
[389866411,1759878640782,-240.0,0.00019684,2]
[389866413,1759878640792,-402.02512307,0.00019694,2]
[389866415,1759878640803,-533.72506543,0.00019694,2]
[389866417,1759878640813,-234.20938206,0.00019694,2]
[389866419,1759878640822,-1030.28882165,0.000197,2]
[389866421,1759878640834,-151.0,0.000197,7]
[389866423,1759878640843,-210.649187,0.000197,7]
[389866425,1759878640853,-151.0,0.000197,7]
[389866427,1759878640862,-151.0,0.000197,7]
[389866429,1759878640872,-151.0,0.000197,7]
[389866431,1759878640881,-807.0,0.00019727,2]
[389866433,1759878640891,-221.69296064,0.00019727,2]
[389866435,1759878640900,-720.0,0.00019731,2]
[389866437,1759878640909,-2718.6052093,0.00019742,2]
[389866439,1759878640919,-1000.0,0.00019842,2]
[389866441,1759878640929,-500.0,0.00019862,2]
[389866443,1759878640938,-1030.28882165,0.000199,2]
[389866445,1759878640948,-500.0,0.00019925,2]
[389866447,1759878640957,-502.43559663,0.00019925,2]
[389866449,1759878640966,-500.0,0.00019925,2]
[389866451,1759878640975,-500.0,0.00019974,2]
[389866453,1759878640984,-500.0,0.00019984,2]
[389866455,1759878640994,-500.0,0.00019993,2]
[389866457,1759878641003,-234.05807603,0.0002,2]
[389866459,1759878641012,-14517.33720406,0.0002,2]
[389866461,1759878641022,-36472.40749508,0.0002,20]
[389866464,1759878641032,-151.0,0.0002,7]
[389866466,1759878641042,-151.0,0.0002,7]
[389866467,1759878641051,-155.994021,0.0002,7]
[389866469,1759878641060,-151.0,0.0002,7]
[389866471,1759878641070,-151.0,0.0002,7]
[389866473,1759878641080,-187.3,0.0002,7]
[389866475,1759878641091,-151.0,0.0002,7]
[389866477,1759878641100,-151.0,0.0002,7]
[389866479,1759878641110,-169.091469,0.0002,7]
[389866481,1759878641124,-151.0,0.0002,7]
[389866483,1759878641133,-151.0,0.0002,7]
[389866486,1759878641148,-151.0,0.0002,7]
[389866488,1759878641158,-151.0,0.0002,7]
[389866490,1759878641167,-151.0,0.0002,7]
[389866492,1759878641176,-279.425622,0.0002,7]
[389866494,1759878641186,-151.0,0.0002,7]
[389866496,1759878641196,-151.0,0.0002,7]
[389866498,1759878641204,-151.0,0.0002,7]
[389866500,1759878641213,-151.0,0.0002,7]
[389866502,1759878641222,-151.0,0.0002,7]
[389866504,1759878641231,-151.0,0.0002,7]
[389866505,1759878641241,-151.0,0.0002,7]
[389866507,1759878641250,-151.0,0.0002,7]
[389866534,1759878641477,-151.0,0.0002,7]
[389866536,1759878641487,-151.0,0.0002,7]
[389866538,1759878641496,-151.0,0.0002,7]
[389866540,1759878641505,-153.850378,0.0002,7]
[389866542,1759878641514,-151.0,0.0002,7]
[389866544,1759878641524,-151.0,0.0002,7]
[389866546,1759878641533,-151.0,0.0002,7]
[389866548,1759878641542,-151.0,0.0002,7]
[389866550,1759878641551,-151.0,0.0002,7]
[389866552,1759878641560,-171.804101,0.0002,7]
[389866554,1759878641569,-151.0,0.0002,7]
[389866555,1759878641579,-151.0,0.0002,7]
[389866556,1759878641588,-151.0,0.0002,7]
[389866557,1759878641598,-151.0,0.0002,7]
[389866558,1759878641607,-151.0,0.0002,7]
[389866560,1759878641616,-151.0,0.0002,7]
[389866561,1759878641625,-151.0,0.0002,7]
[389866564,1759878641634,-151.0,0.0002,7]
[389866566,1759878641644,-269.523592,0.0002,7]
[389866568,1759878641653,-151.0,0.0002,7]
[389866570,1759878641662,-162.543493,0.0002,7]
[389866572,1759878641672,-151.0,0.0002,7]
[389866574,1759878641681,-151.0,0.0002,7]
[389866576,1759878641690,-151.0,0.0002,7]
[389866578,1759878641699,-151.0,0.0002,7]
[389866580,1759878641709,-229.782625,0.0002,7]
[389866582,1759878641718,-229.782625,0.0002,7]
[389866584,1759878641729,-229.782625,0.0002,7]
[389866586,1759878641739,-229.782625,0.0002,7]
[389866588,1759878641748,-151.0,0.0002,7]
[389866590,1759878641758,-151.0,0.0002,7]
[389866592,1759878641767,-204.182645,0.0002,7]
[389866594,1759878641777,-151.0,0.0002,7]
[389866596,1759878641786,-204.182645,0.0002,7]
[389866598,1759878641796,-204.182645,0.0002,7]
[389866600,1759878641805,-204.182645,0.0002,7]
[389866602,1759878641814,-151.0,0.0002,7]
[389866604,1759878641824,-151.0,0.0002,7]
[389866606,1759878641833,-151.0,0.0002,7]
[389866608,1759878641843,-151.0,0.0002,7]
[389866610,1759878641852,-151.0,0.0002,7]
[389866612,1759878641862,-154.607364,0.0002,7]
[389866614,1759878641871,-151.0,0.0002,7]
[389866616,1759878641881,-151.0,0.0002,7]
[389866618,1759878641890,-151.0,0.0002,7]
[389866620,1759878641900,-151.0,0.0002,7]
[389866622,1759878641909,-151.0,0.0002,7]
[389866624,1759878641919,-2969.942289,0.0002,7]
[389866626,1759878641929,-2969.942289,0.0002,7]
[389866628,1759878641938,-2969.942289,0.0002,7]
[389866630,1759878641948,-2969.942289,0.0002,7]
[389866633,1759878641958,-151.0,0.0002,7]
[389866635,1759878641967,-151.0,0.0002,7]
[389866637,1759878641976,-154.816444,0.0002,7]
[389866639,1759878641986,-807.0,0.00020001,2]
[389866641,1759878641995,-360.0,0.0002005,2]
[389866643,1759878642005,-1030.28882165,0.000201,2]
[389866645,1759878642014,-714.739548,0.00020187,2]
[389866647,1759878642023,-606.6028157,0.00020257,2]
[389866649,1759878642032,-171.644529,0.00020261,2]
[389866651,1759878642042,-807.0,0.00020275,2]
[389866653,1759878642051,-262.5,0.00020284,2]
[389866655,1759878642060,-1680.37356172,0.00020293,2]
[389866657,1759878642069,-1030.28882165,0.000203,2]
[389866659,1759878642079,-1030.28882165,0.000205,2]
[389866661,1759878642088,-807.0,0.00020549,2]
[389866663,1759878642097,-460.0,0.00020598,2]
[389866665,1759878642107,-151.0,0.000206,3]
[389866667,1759878642117,-587.0,0.00020609,2]
[389866669,1759878642128,-151.0,0.00020737,7]
[389866671,1759878642137,-202.314797,0.00020737,7]
[389866673,1759878642146,-151.0,0.00020737,7]
[389866675,1759878642156,-151.0,0.00020737,7]
[389866677,1759878642168,-151.0,0.00020737,7]
[389866679,1759878642177,-151.0,0.00020737,7]
[389866681,1759878642186,-151.0,0.00020737,7]
[389866683,1759878642196,-151.0,0.00020737,7]
[389866685,1759878642205,-151.0,0.00020737,7]
[389866687,1759878642215,-193.017752,0.00020737,7]
[389866689,1759878642223,-229.782625,0.00020737,7]
[389866690,1759878642233,-229.782625,0.00020737,7]
[389866693,1759878642242,-229.782625,0.00020737,7]
[389866695,1759878642252,-229.782625,0.00020737,7]
[389866697,1759878642261,-151.0,0.00020737,7]
[389866698,1759878642270,-204.182645,0.00020737,7]
[389866700,1759878642279,-151.0,0.00020737,7]
[389866703,1759878642289,-204.182645,0.00020737,7]
[389866705,1759878642298,-204.182645,0.00020737,7]
[389866707,1759878642307,-204.182645,0.00020737,7]
[389866708,1759878642316,-151.0,0.00020737,7]
[389866711,1759878642325,-151.0,0.00020737,7]
[389866713,1759878642336,-151.0,0.00020737,7]
[389866715,1759878642345,-151.0,0.00020737,7]
[389866717,1759878642354,-151.0,0.00020737,7]
[389866719,1759878642363,-151.0,0.00020737,7]
[389866721,1759878642372,-151.0,0.00020737,7]
[389866723,1759878642382,-151.0,0.00020737,7]
[389866725,1759878642391,-151.0,0.00020737,7]
[389866727,1759878642400,-276.171049,0.00020737,7]
[389866729,1759878642409,-2969.942289,0.00020737,7]
[389866731,1759878642418,-2969.942289,0.00020737,7]
[389866733,1759878642426,-2969.942289,0.00020737,7]
[389866735,1759878642435,-2969.942289,0.00020737,7]
[389866737,1759878642444,-151.0,0.00020737,7]
[389866739,1759878642453,-10733.7840125,0.00020737,2]
[389866741,1759878642462,-533.72506543,0.0002074,7]
[389866743,1759878642471,-807.0,0.00020823,2]
[389866745,1759878642480,-285.0,0.00020884,2]
[389866747,1759878642488,-1999.95,0.00020899,2]
[389866749,1759878642498,-151.0,0.00021083,7]
[389866751,1759878642507,-151.0,0.00021083,7]
[389866753,1759878642516,-151.446544,0.00021083,7]
[389866755,1759878642525,-151.0,0.00021083,7]
[389866757,1759878642535,-151.0,0.00021083,7]
[389866759,1759878642543,-807.0,0.00021097,2]
[389866761,1759878642552,-560.0,0.00021146,2]
[389866763,1759878642562,-2000.0,0.000212,2]
[389866765,1759878642571,-1680.37356172,0.00021324,2]
[389866767,1759878642580,-293.0,0.0002137,4]
[389866769,1759878642589,-1018.36057806,0.0002137,4]
[389866771,1759878642599,-807.0,0.00021371,2]
[389866773,1759878642607,-151.0,0.00021424,7]
[389866775,1759878642617,-151.0,0.00021424,7]
[389866777,1759878642626,-151.0,0.00021424,7]
[389866779,1759878642637,-151.0,0.00021424,7]
[389866781,1759878642647,-151.0,0.00021424,7]
[389866783,1759878642656,-191.84564194,0.00021424,7]
[389866785,1759878642666,-151.0,0.00021424,7]
[389866787,1759878642675,-151.0,0.00021424,7]
[389866789,1759878642684,-151.0,0.00021424,7]
[389866792,1759878642694,-151.0,0.00021424,7]
[389866793,1759878642703,-229.782625,0.00021424,7]
[389866796,1759878642712,-229.782625,0.00021424,7]
[389866798,1759878642721,-229.782625,0.00021424,7]
[389866800,1759878642731,-229.782625,0.00021424,7]
[389866802,1759878642740,-151.0,0.00021424,7]
[389866804,1759878642750,-204.182645,0.00021424,7]
[389866806,1759878642759,-267.79785,0.00021424,7]
[389866808,1759878642769,-204.182645,0.00021424,7]
[389866810,1759878642778,-204.182645,0.00021424,7]
[389866812,1759878642787,-204.182645,0.00021424,7]
[389866814,1759878642796,-151.0,0.00021424,7]
[389866816,1759878642806,-151.0,0.00021424,7]
[389866818,1759878642815,-298.7306282,0.00021424,7]
[389866820,1759878642824,-151.0,0.00021424,7]
[389866822,1759878642834,-151.0,0.00021424,7]
[389866824,1759878642843,-151.0,0.00021424,7]
[389866826,1759878642852,-151.0,0.00021424,7]
[389866828,1759878642861,-151.0,0.00021424,7]
[389866830,1759878642870,-151.0,0.00021424,7]
[389866832,1759878642880,-2969.942289,0.00021424,7]
[389866834,1759878642889,-2969.942289,0.00021424,7]
[389866836,1759878642899,-2969.942289,0.00021424,7]
[389866838,1759878642908,-2969.942289,0.00021424,7]
[389866840,1759878642917,-151.0,0.00021424,7]
[389866842,1759878642926,-1000.0,0.00021424,2]
[389866844,1759878642935,-1000.0,0.00021424,2]
[389866846,1759878642945,-1000.0,0.00021424,2]
[389866848,1759878642955,-1000.0,0.00021424,2]
[389866850,1759878642965,-1000.0,0.00021424,2]
[389866852,1759878642974,-1000.0,0.00021424,2]
[389866854,1759878642983,-1000.0,0.00021424,2]
[389866856,1759878642992,-1000.0,0.00021424,2]
[389866858,1759878643002,-1000.0,0.00021424,2]
[389866860,1759878643011,-1000.0,0.00021424,2]
[389866862,1759878643020,-1000.0,0.00021424,2]
[389866864,1759878643029,-1000.0,0.00021424,2]
[389866866,1759878643038,-1000.0,0.00021424,2]
[389866868,1759878643047,-289.44217451,0.00021424,2]
[389866870,1759878643057,-250.0,0.00021424,2]
[389866872,1759878643066,-500.0,0.00021424,2]
[389866874,1759878643076,-500.0,0.00021424,2]
[389866876,1759878643086,-250.0,0.00021424,2]
[389866878,1759878643095,-250.0,0.00021424,2]
[389866880,1759878643104,-500.0,0.00021424,2]
[389866882,1759878643117,-151.64011355,0.00021424,2]
[389866884,1759878643126,-197.4233454,0.00021424,2]
[389866886,1759878643135,-250.0,0.00021424,2]
[389866888,1759878643144,-500.0,0.00021424,2]
[389866890,1759878643154,-500.0,0.00021424,2]
[389866892,1759878643163,-250.0,0.00021424,2]
[389866894,1759878643172,-500.0,0.00021424,2]
[389866896,1759878643181,-151.0,0.00021424,2]
[389866897,1759878643191,-250.0,0.00021424,2]
[389866899,1759878643200,-500.0,0.00021424,2]
[389866901,1759878643209,-500.0,0.00021424,2]
[389866903,1759878643218,-151.0,0.00021424,2]
[389866905,1759878643227,-151.0,0.00021424,2]
[389866907,1759878643236,-151.0,0.00021424,2]
[389866909,1759878643245,-250.0,0.00021424,2]
[389866911,1759878643254,-500.0,0.00021424,2]
[389866913,1759878643263,-500.0,0.00021424,2]
[389866915,1759878643272,-151.0,0.00021424,2]
[389866917,1759878643281,-151.0,0.00021424,2]
[389866919,1759878643290,-151.0,0.00021424,2]
[389866921,1759878643299,-500.0,0.00021424,2]
[389866923,1759878643308,-250.0,0.00021424,2]
[389866925,1759878643317,-500.0,0.00021424,2]
[389866927,1759878643326,-151.0,0.00021424,2]
[389866929,1759878643338,-151.0,0.00021424,2]
[389866931,1759878643347,-151.0,0.00021424,2]
[389866934,1759878643358,-500.0,0.00021424,2]
[389866936,1759878643367,-250.0,0.00021424,2]
[389866938,1759878643376,-151.0,0.00021424,2]
[389866940,1759878643385,-500.0,0.00021424,2]
[389866942,1759878643394,-151.0,0.00021424,2]
[389866944,1759878643403,-151.0,0.00021424,2]
[389866946,1759878643412,-162.380719,0.00021424,2]
[389866948,1759878643421,-500.0,0.00021424,2]
[389866950,1759878643430,-250.0,0.00021424,2]
[389866952,1759878643439,-210.78874063,0.00021424,2]
[389866954,1759878643448,-500.0,0.00021424,2]
[389866956,1759878643457,-151.0,0.00021424,2]
[389866958,1759878643466,-151.0,0.00021424,2]
[389866960,1759878643476,-500.0,0.00021424,2]
[389866962,1759878643485,-254.328279,0.00021424,2]
[389866964,1759878643494,-500.0,0.00021424,2]
[389866966,1759878643503,-151.0,0.00021424,2]
[389866968,1759878643512,-151.0,0.00021424,2]
[389866970,1759878643521,-442.78938957,0.00021424,2]
[389866972,1759878643529,-500.0,0.00021424,2]
[389866974,1759878643539,-151.0,0.00021424,2]
[389866976,1759878643549,-193.73125886,0.00021424,2]
[389866979,1759878643558,-500.0,0.00021424,2]
[389866981,1759878643567,-151.0,0.00021424,2]
[389866983,1759878643575,-500.0,0.00021424,2]
[389866985,1759878643585,-151.0,0.00021424,2]
[389866988,1759878643594,-500.0,0.00021424,2]